[Event "Titled Tuesday Blitz November 08 Late 2022"]
[White "Bach, Matthias"]
[Black "Kleiman, Jake"]
[WhiteFideId "4603168"]
[BlackFideId "2020041"]
[WhiteElo "2165"]
[BlackElo "2502"]
[Result "0-1"]
[Round "06"]
[TimeControl "180+1"]
[Date "2022.11.09"]
[WhiteClock "0:00:48"]
[BlackClock "0:01:25"]

1. d4 {[%clk 0:03:00]}  Nf6 {[%clk 0:02:59]} 2. c4 {[%clk 0:03:01]}  e6 {[%clk 0:02:59]} 3. Nc3 {[%clk 0:03:00]}  Bb4 {[%clk 0:02:58]} 4. Bg5 {[%clk 0:03:01]}  c5 {[%clk 0:02:55]} 5. d5 {[%clk 0:03:01]}  exd5 {[%clk 0:02:55]} 6. cxd5 {[%clk 0:03:02]}  d6 {[%clk 0:02:56]} 7. e3 {[%clk 0:03:02]}  Nbd7 {[%clk 0:02:56]} 8. Bd3 {[%clk 0:03:02]}  Qa5 {[%clk 0:02:51]} 9. Ne2 {[%clk 0:02:59]}  Nxd5 {[%clk 0:02:49]} 10. O-O {[%clk 0:02:58]}  Bxc3 {[%clk 0:02:48]} 11. bxc3 {[%clk 0:02:58]}  c4 {[%clk 0:02:42]} 12. Bxc4 {[%clk 0:02:43]}  N5b6 {[%clk 0:02:42]} 13. Bxf7+ {[%clk 0:02:17]}  Kxf7 {[%clk 0:02:43]} 14. Bf4 {[%clk 0:02:12]}  d5 {[%clk 0:02:37]} 15. Nd4 {[%clk 0:02:08]}  Nf6 {[%clk 0:02:36]} 16. Be5 {[%clk 0:02:02]}  Nbd7 {[%clk 0:02:33]} 17. f4 {[%clk 0:02:02]}  Re8 {[%clk 0:02:31]} 18. Qd3 {[%clk 0:01:53]}  Kg8 {[%clk 0:02:26]} 19. Bxf6 {[%clk 0:01:31]}  Nxf6 {[%clk 0:02:26]} 20. c4 {[%clk 0:01:29]}  Bd7 {[%clk 0:02:16]} 21. Rab1 {[%clk 0:01:24]}  Rac8 {[%clk 0:02:09]} 22. cxd5 {[%clk 0:01:19]}  Qxd5 {[%clk 0:02:09]} 23. Rfe1 {[%clk 0:01:11]}  b6 {[%clk 0:02:04]} 24. Kh1 {[%clk 0:01:03]}  Qc4 {[%clk 0:01:51]} 25. Qa3 {[%clk 0:00:59]}  Qc7 {[%clk 0:01:34]} 26. Rbc1 {[%clk 0:00:57]}  Qb8 {[%clk 0:01:34]} 27. Qd3 {[%clk 0:00:51]}  Qd6 {[%clk 0:01:31]} 28. Qa6 {[%clk 0:00:49]}  Rxc1 {[%clk 0:01:24]} 29. Rxc1 {[%clk 0:00:48]}  Rxe3 {[%clk 0:01:25]} 0-1


[Site "https://www.chess.com"]

[Event "Titled Tuesday Blitz November 08 Late 2022"]
[White "Chlpik, Martin"]
[Black "Bilan, Danila"]
[WhiteFideId "14923351"]
[BlackFideId "24161918"]
[WhiteElo "2109"]
[BlackElo "2173"]
[Result "1-0"]
[Round "06"]
[TimeControl "180+1"]
[Date "2022.11.09"]
[WhiteClock "0:00:44"]
[BlackClock "0:00:16"]

1. d4 {[%clk 0:03:00]}  d5 {[%clk 0:03:00]} 2. Nc3 {[%clk 0:02:58]}  Nf6 {[%clk 0:03:00]} 3. Bf4 {[%clk 0:02:58]}  a6 {[%clk 0:02:59]} 4. e3 {[%clk 0:02:56]}  Bf5 {[%clk 0:02:59]} 5. f3 {[%clk 0:02:55]}  e6 {[%clk 0:02:58]} 6. g4 {[%clk 0:02:55]}  Bg6 {[%clk 0:02:58]} 7. h4 {[%clk 0:02:55]}  h6 {[%clk 0:02:56]} 8. Bd3 {[%clk 0:02:54]}  Bxd3 {[%clk 0:02:53]} 9. Qxd3 {[%clk 0:02:55]}  Bd6 {[%clk 0:02:54]} 10. Nh3 {[%clk 0:02:51]}  c5 {[%clk 0:02:51]} 11. O-O-O {[%clk 0:02:49]}  Nc6 {[%clk 0:02:44]} 12. g5 {[%clk 0:02:31]}  Nh5 {[%clk 0:02:21]} 13. Bxd6 {[%clk 0:02:20]}  Qxd6 {[%clk 0:02:20]} 14. dxc5 {[%clk 0:02:17]}  Qxc5 {[%clk 0:02:17]} 15. e4 {[%clk 0:02:01]}  Ne5 {[%clk 0:01:50]} 16. Qe2 {[%clk 0:01:58]}  Ng3 {[%clk 0:01:48]} 17. Qh2 {[%clk 0:01:56]}  Nxh1 {[%clk 0:01:10]} 18. Qxe5 {[%clk 0:01:54]}  Nf2 {[%clk 0:01:09]} 19. Nxf2 {[%clk 0:01:11]}  Qxf2 {[%clk 0:01:10]} 20. Nxd5 {[%clk 0:01:03]}  Kf8 {[%clk 0:00:18]} 21. Qd6+ {[%clk 0:00:55]}  Kg8 {[%clk 0:00:18]} 22. Ne7+ {[%clk 0:00:53]}  Kh7 {[%clk 0:00:18]} 23. Qxe6 {[%clk 0:00:44]}  fxe6 {[%clk 0:00:16]} 24. g6# {[%clk 0:00:44]} 1-0


[Site "https://www.chess.com"]

[Event "Titled Tuesday Blitz November 08 Late 2022"]
[White "Crevatin, Leo"]
[Black "Mr_Penings"]
[WhiteFideId "1726307"]
[WhiteElo "2208"]
[BlackElo "2690"]
[Result "1-0"]
[Round "06"]
[TimeControl "180+1"]
[Date "2022.11.09"]
[WhiteClock "0:00:03"]
[BlackClock "0:00:03"]

1. e4 {[%clk 0:03:00]}  c5 {[%clk 0:02:59]} 2. Nf3 {[%clk 0:03:00]}  e6 {[%clk 0:02:59]} 3. d4 {[%clk 0:03:00]}  cxd4 {[%clk 0:03:00]} 4. Nxd4 {[%clk 0:03:01]}  a6 {[%clk 0:03:01]} 5. a3 {[%clk 0:03:01]}  Qc7 {[%clk 0:03:00]} 6. Nc3 {[%clk 0:03:01]}  b5 {[%clk 0:03:00]} 7. Be3 {[%clk 0:02:56]}  Bb7 {[%clk 0:03:00]} 8. f3 {[%clk 0:02:54]}  Nf6 {[%clk 0:02:59]} 9. Be2 {[%clk 0:02:53]}  d6 {[%clk 0:02:53]} 10. O-O {[%clk 0:02:50]}  Nbd7 {[%clk 0:02:53]} 11. Qd2 {[%clk 0:02:47]}  Be7 {[%clk 0:02:53]} 12. Rad1 {[%clk 0:02:45]}  O-O {[%clk 0:02:49]} 13. Ndxb5 {[%clk 0:02:34]}  axb5 {[%clk 0:02:49]} 14. Nxb5 {[%clk 0:02:35]}  Qb8 {[%clk 0:02:31]} 15. Nxd6 {[%clk 0:02:34]}  Bc6 {[%clk 0:02:25]} 16. Nc4 {[%clk 0:02:30]}  Rd8 {[%clk 0:02:22]} 17. Qc3 {[%clk 0:02:23]}  Nc5 {[%clk 0:02:09]} 18. b4 {[%clk 0:01:54]}  Na4 {[%clk 0:02:06]} 19. Qb3 {[%clk 0:01:54]}  Rc8 {[%clk 0:01:59]} 20. Na5 {[%clk 0:01:44]}  Be8 {[%clk 0:01:59]} 21. Bd4 {[%clk 0:01:33]}  Bd6 {[%clk 0:01:48]} 22. h3 {[%clk 0:01:00]}  Nh5 {[%clk 0:01:45]} 23. Bd3 {[%clk 0:00:53]}  Bh2+ {[%clk 0:01:42]} 24. Kf2 {[%clk 0:00:34]}  Qg3+ {[%clk 0:01:42]} 25. Ke2 {[%clk 0:00:35]}  Qxg2+ {[%clk 0:01:33]} 26. Rf2 {[%clk 0:00:33]}  Qxh3 {[%clk 0:01:25]} 27. c4 {[%clk 0:00:23]}  Rd8 {[%clk 0:01:15]} 28. Be3 {[%clk 0:00:21]}  Bf4 {[%clk 0:01:08]} 29. c5 {[%clk 0:00:15]}  Bb5 {[%clk 0:00:40]} 30. Bxb5 {[%clk 0:00:09]}  Ng3+ {[%clk 0:00:40]} 31. Ke1 {[%clk 0:00:10]}  Qh1+ {[%clk 0:00:39]} 32. Bf1 {[%clk 0:00:09]}  Rxd1+ {[%clk 0:00:32]} 33. Kxd1 {[%clk 0:00:09]}  Nxf1 {[%clk 0:00:32]} 34. Bxf4 {[%clk 0:00:09]}  Rd8+ {[%clk 0:00:27]} 35. Ke2 {[%clk 0:00:04]}  Qh4 {[%clk 0:00:20]} 36. Kxf1 {[%clk 0:00:03]}  Qxf4 {[%clk 0:00:20]} 37. Qxa4 {[%clk 0:00:03]}  Qc1+ {[%clk 0:00:18]} 38. Kg2 {[%clk 0:00:04]}  Qg5+ {[%clk 0:00:17]} 39. Kf1 {[%clk 0:00:03]}  Qc1+ {[%clk 0:00:16]} 40. Kg2 {[%clk 0:00:04]}  Qg5+ {[%clk 0:00:15]} 41. Kh3 {[%clk 0:00:04]}  g6 {[%clk 0:00:09]} 42. Qc2 {[%clk 0:00:03]}  Qh5+ {[%clk 0:00:07]} 43. Kg2 {[%clk 0:00:02]}  Qg5+ {[%clk 0:00:04]} 44. Kf1 {[%clk 0:00:03]}  Qe3 {[%clk 0:00:04]} 45. Qe2 {[%clk 0:00:03]}  Qc1+ {[%clk 0:00:03]} 46. Kg2 {[%clk 0:00:03]}  Qg5+ {[%clk 0:00:03]} 47. Kh1 {[%clk 0:00:03]} 1-0


[Site "https://www.chess.com"]

[Event "Titled Tuesday Blitz November 08 Late 2022"]
[White "Curtis, John"]
[Black "Pniaczek, Marek"]
[WhiteFideId "3200256"]
[BlackFideId "21800421"]
[WhiteElo "2203"]
[BlackElo "2138"]
[Result "1-0"]
[Round "06"]
[TimeControl "180+1"]
[Date "2022.11.09"]
[WhiteClock "0:00:54"]
[BlackClock "0:00:58"]

1. e4 {[%clk 0:03:00]}  e5 {[%clk 0:02:59]} 2. Nf3 {[%clk 0:02:55]}  Nc6 {[%clk 0:02:59]} 3. Bb5 {[%clk 0:02:54]}  a6 {[%clk 0:02:59]} 4. Bxc6 {[%clk 0:02:54]}  dxc6 {[%clk 0:02:59]} 5. O-O {[%clk 0:02:55]}  Bg4 {[%clk 0:02:58]} 6. d3 {[%clk 0:02:54]}  Qf6 {[%clk 0:02:55]} 7. Be3 {[%clk 0:02:54]}  Bxf3 {[%clk 0:02:54]} 8. Qxf3 {[%clk 0:02:54]}  Qxf3 {[%clk 0:02:54]} 9. gxf3 {[%clk 0:02:54]}  Ne7 {[%clk 0:02:52]} 10. f4 {[%clk 0:02:52]}  exf4 {[%clk 0:02:51]} 11. Bxf4 {[%clk 0:02:52]}  Kd7 {[%clk 0:02:51]} 12. Nd2 {[%clk 0:02:37]}  Ng6 {[%clk 0:02:50]} 13. Bg3 {[%clk 0:02:32]}  h5 {[%clk 0:02:49]} 14. f4 {[%clk 0:02:29]}  h4 {[%clk 0:02:48]} 15. Be1 {[%clk 0:02:29]}  Bc5+ {[%clk 0:02:44]} 16. Kh1 {[%clk 0:02:25]}  Be3 {[%clk 0:02:44]} 17. f5 {[%clk 0:02:24]}  Ne5 {[%clk 0:02:43]} 18. Nf3 {[%clk 0:02:20]}  Nxf3 {[%clk 0:02:35]} 19. Rxf3 {[%clk 0:02:20]}  Bg5 {[%clk 0:02:35]} 20. Bc3 {[%clk 0:02:17]}  f6 {[%clk 0:02:33]} 21. Rg1 {[%clk 0:02:12]}  Rh5 {[%clk 0:02:21]} 22. h3 {[%clk 0:02:08]}  c5 {[%clk 0:02:16]} 23. Rg4 {[%clk 0:02:01]}  Re8 {[%clk 0:02:13]} 24. Kg2 {[%clk 0:01:56]}  b5 {[%clk 0:02:12]} 25. b3 {[%clk 0:01:53]}  Rhh8 {[%clk 0:02:07]} 26. Kf1 {[%clk 0:01:53]}  Re7 {[%clk 0:02:04]} 27. e5 {[%clk 0:01:52]}  Kc6 {[%clk 0:01:57]} 28. exf6 {[%clk 0:01:46]}  Bxf6 {[%clk 0:01:53]} 29. Bxf6 {[%clk 0:01:46]}  gxf6 {[%clk 0:01:53]} 30. Rff4 {[%clk 0:01:45]}  Re5 {[%clk 0:01:48]} 31. Rxh4 {[%clk 0:01:39]}  Rxh4 {[%clk 0:01:47]} 32. Rxh4 {[%clk 0:01:39]}  Rxf5+ {[%clk 0:01:48]} 33. Ke2 {[%clk 0:01:39]}  Rg5 {[%clk 0:01:47]} 34. Rf4 {[%clk 0:01:33]}  Rg2+ {[%clk 0:01:46]} 35. Kd1 {[%clk 0:01:32]}  Kd5 {[%clk 0:01:42]} 36. c4+ {[%clk 0:01:24]}  Ke5 {[%clk 0:01:39]} 37. Re4+ {[%clk 0:01:21]}  Kf5 {[%clk 0:01:39]} 38. a4 {[%clk 0:01:17]}  bxa4 {[%clk 0:01:16]} 39. bxa4 {[%clk 0:01:17]}  Ra2 {[%clk 0:01:17]} 40. Re7 {[%clk 0:01:04]}  Rxa4 {[%clk 0:01:13]} 41. Rxc7 {[%clk 0:01:04]}  Ra5 {[%clk 0:01:13]} 42. Kc2 {[%clk 0:01:03]}  Kf4 {[%clk 0:01:10]} 43. h4 {[%clk 0:01:02]}  Kg4 {[%clk 0:01:09]} 44. Rf7 {[%clk 0:01:01]}  f5 {[%clk 0:01:09]} 45. h5 {[%clk 0:01:02]}  f4 {[%clk 0:01:08]} 46. h6 {[%clk 0:01:01]}  f3 {[%clk 0:01:06]} 47. Kb2 {[%clk 0:00:57]}  Ra4 {[%clk 0:01:02]} 48. h7 {[%clk 0:00:56]}  Rb4+ {[%clk 0:01:02]} 49. Kc2 {[%clk 0:00:55]}  Rb8 {[%clk 0:01:01]} 50. Rg7+ {[%clk 0:00:54]}  Kf4 {[%clk 0:00:58]} 51. Rg8 {[%clk 0:00:54]} 1-0


[Site "https://www.chess.com"]

[Event "Titled Tuesday Blitz November 08 Late 2022"]
[White "D`Arruda, Ricardo D."]
[Black "Simonovic, Miroslav"]
[WhiteFideId "100692"]
[BlackFideId "919152"]
[WhiteElo "2507"]
[BlackElo "2043"]
[Result "0-1"]
[Round "06"]
[TimeControl "180+1"]
[Date "2022.11.09"]
[WhiteClock "0:00:31"]
[BlackClock "0:01:07"]

1. d4 {[%clk 0:02:57]}  Nf6 {[%clk 0:02:59]} 2. Nf3 {[%clk 0:02:55]}  c5 {[%clk 0:02:59]} 3. d5 {[%clk 0:02:53]}  b5 {[%clk 0:02:59]} 4. c4 {[%clk 0:02:52]}  bxc4 {[%clk 0:02:58]} 5. Nc3 {[%clk 0:02:52]}  d6 {[%clk 0:02:58]} 6. e4 {[%clk 0:02:51]}  Nbd7 {[%clk 0:02:58]} 7. Bxc4 {[%clk 0:02:50]}  g6 {[%clk 0:02:59]} 8. O-O {[%clk 0:02:49]}  Bg7 {[%clk 0:02:59]} 9. Bg5 {[%clk 0:02:47]}  O-O {[%clk 0:02:58]} 10. Qd2 {[%clk 0:02:47]}  Re8 {[%clk 0:02:57]} 11. Rfe1 {[%clk 0:02:46]}  Ng4 {[%clk 0:02:51]} 12. a4 {[%clk 0:02:41]}  h6 {[%clk 0:02:48]} 13. Bf4 {[%clk 0:02:39]}  Kh7 {[%clk 0:02:47]} 14. a5 {[%clk 0:02:36]}  Rb8 {[%clk 0:02:44]} 15. Ra2 {[%clk 0:02:33]}  Nge5 {[%clk 0:02:42]} 16. Nxe5 {[%clk 0:02:32]}  Nxe5 {[%clk 0:02:43]} 17. Bf1 {[%clk 0:02:30]}  g5 {[%clk 0:02:29]} 18. Bg3 {[%clk 0:02:29]}  Rb4 {[%clk 0:02:15]} 19. Kh1 {[%clk 0:02:18]}  f5 {[%clk 0:01:53]} 20. exf5 {[%clk 0:02:13]}  Bxf5 {[%clk 0:01:54]} 21. f3 {[%clk 0:01:58]}  Nc4 {[%clk 0:01:41]} 22. Qc1 {[%clk 0:01:53]}  Qb8 {[%clk 0:01:37]} 23. Ne4 {[%clk 0:01:34]}  Nxb2 {[%clk 0:01:23]} 24. h4 {[%clk 0:01:06]}  Bxe4 {[%clk 0:01:20]} 25. Rxe4 {[%clk 0:00:59]}  Rxe4 {[%clk 0:01:10]} 26. fxe4 {[%clk 0:01:00]}  Qb3 {[%clk 0:01:10]} 27. Rxb2 {[%clk 0:00:34]}  Qxg3 {[%clk 0:01:09]} 28. Rb3 {[%clk 0:00:31]}  Qxb3 {[%clk 0:01:07]} 0-1


[Site "https://www.chess.com"]

[Event "Titled Tuesday Blitz November 08 Late 2022"]
[White "Deac, Bogdan-Daniel"]
[Black "Piesik, Piotr"]
[WhiteFideId "1226380"]
[BlackFideId "1136194"]
[WhiteElo "2648"]
[BlackElo "2316"]
[Result "1-0"]
[Round "06"]
[TimeControl "180+1"]
[Date "2022.11.08"]
[WhiteClock "0:00:04"]
[BlackClock "0:00:01"]

1. c4 {[%clk 0:03:00]}  g6 {[%clk 0:02:48]} 2. d4 {[%clk 0:02:57]}  Bg7 {[%clk 0:02:49]} 3. e4 {[%clk 0:02:57]}  d6 {[%clk 0:02:47]} 4. Nc3 {[%clk 0:02:57]}  Nf6 {[%clk 0:02:45]} 5. Be2 {[%clk 0:02:57]}  O-O {[%clk 0:02:44]} 6. Be3 {[%clk 0:02:56]}  e5 {[%clk 0:02:43]} 7. d5 {[%clk 0:02:55]}  c6 {[%clk 0:02:40]} 8. g4 {[%clk 0:02:53]}  cxd5 {[%clk 0:02:40]} 9. cxd5 {[%clk 0:02:54]}  Na6 {[%clk 0:02:36]} 10. g5 {[%clk 0:02:50]}  Nd7 {[%clk 0:02:35]} 11. h4 {[%clk 0:02:50]}  f5 {[%clk 0:02:33]} 12. f3 {[%clk 0:02:14]}  Ndc5 {[%clk 0:02:27]} 13. a3 {[%clk 0:02:02]}  fxe4 {[%clk 0:02:10]} 14. fxe4 {[%clk 0:02:01]}  Rf4 {[%clk 0:02:10]} 15. Bf3 {[%clk 0:01:52]}  Rf7 {[%clk 0:01:45]} 16. b4 {[%clk 0:01:47]}  Nd7 {[%clk 0:01:45]} 17. Kf2 {[%clk 0:01:19]}  Nb6 {[%clk 0:01:44]} 18. Kg2 {[%clk 0:01:18]}  Nc4 {[%clk 0:01:42]} 19. Bf2 {[%clk 0:01:18]}  Bd7 {[%clk 0:01:41]} 20. Nce2 {[%clk 0:00:44]}  Nc7 {[%clk 0:01:33]} 21. Ng3 {[%clk 0:00:36]}  a5 {[%clk 0:01:30]} 22. Be2 {[%clk 0:00:26]}  b5 {[%clk 0:01:23]} 23. Nf3 {[%clk 0:00:26]}  Bg4 {[%clk 0:01:13]} 24. Rf1 {[%clk 0:00:25]}  Qd7 {[%clk 0:01:11]} 25. Ng1 {[%clk 0:00:25]}  Bxe2 {[%clk 0:01:07]} 26. Qxe2 {[%clk 0:00:24]}  Raf8 {[%clk 0:00:57]} 27. bxa5 {[%clk 0:00:22]}  Nxa5 {[%clk 0:00:55]} 28. Rab1 {[%clk 0:00:22]}  h6 {[%clk 0:00:45]} 29. Be3 {[%clk 0:00:18]}  hxg5 {[%clk 0:00:42]} 30. Bxg5 {[%clk 0:00:18]}  Rxf1 {[%clk 0:00:33]} 31. Nxf1 {[%clk 0:00:17]}  Kh7 {[%clk 0:00:17]} 32. Nh3 {[%clk 0:00:09]}  Nc4 {[%clk 0:00:13]} 33. a4 {[%clk 0:00:08]}  Ra8 {[%clk 0:00:10]} 34. axb5 {[%clk 0:00:07]}  Nb6 {[%clk 0:00:09]} 35. Ng3 {[%clk 0:00:06]}  Ra5 {[%clk 0:00:08]} 36. h5 {[%clk 0:00:06]}  Rxb5 {[%clk 0:00:05]} 37. hxg6+ {[%clk 0:00:06]}  Kg8 {[%clk 0:00:05]} 38. Rf1 {[%clk 0:00:06]}  Na4 {[%clk 0:00:04]} 39. Rf7 {[%clk 0:00:04]}  Qc8 {[%clk 0:00:01]} 40. Rxc7 {[%clk 0:00:04]} 1-0


[Site "https://www.chess.com"]

[Event "Titled Tuesday Blitz November 08 Late 2022"]
[White "Derige Kane, Yan"]
[Black "Barash, Anton"]
[WhiteFideId "20665431"]
[BlackFideId "30935229"]
[WhiteElo "2148"]
[BlackElo "2292"]
[Result "1-0"]
[Round "06"]
[TimeControl "180+1"]
[Date "2022.11.09"]
[WhiteClock "0:01:33"]
[BlackClock "0:00:29"]

1. Nf3 {[%clk 0:02:51]}  d5 {[%clk 0:02:59]} 2. c4 {[%clk 0:02:49]}  e6 {[%clk 0:02:57]} 3. g3 {[%clk 0:02:46]}  Nf6 {[%clk 0:02:57]} 4. Bg2 {[%clk 0:02:46]}  Be7 {[%clk 0:02:57]} 5. O-O {[%clk 0:02:46]}  O-O {[%clk 0:02:57]} 6. b3 {[%clk 0:02:46]}  c6 {[%clk 0:02:56]} 7. Bb2 {[%clk 0:02:47]}  Re8 {[%clk 0:02:52]} 8. d3 {[%clk 0:02:43]}  Nbd7 {[%clk 0:02:52]} 9. Nbd2 {[%clk 0:02:43]}  Nf8 {[%clk 0:02:53]} 10. Re1 {[%clk 0:02:44]}  Ng6 {[%clk 0:02:53]} 11. e4 {[%clk 0:02:44]}  a5 {[%clk 0:02:47]} 12. a3 {[%clk 0:02:44]}  Qb6 {[%clk 0:02:37]} 13. h3 {[%clk 0:02:26]}  Rd8 {[%clk 0:02:28]} 14. Qe2 {[%clk 0:02:15]}  dxe4 {[%clk 0:02:01]} 15. dxe4 {[%clk 0:02:12]}  Nd7 {[%clk 0:02:01]} 16. Rab1 {[%clk 0:02:04]}  Nc5 {[%clk 0:01:59]} 17. b4 {[%clk 0:02:03]}  Nd3 {[%clk 0:01:57]} 18. Red1 {[%clk 0:01:59]}  axb4 {[%clk 0:01:49]} 19. axb4 {[%clk 0:01:59]}  Bxb4 {[%clk 0:01:22]} 20. Bd4 {[%clk 0:01:46]}  c5 {[%clk 0:01:12]} 21. Qxd3 {[%clk 0:01:38]}  cxd4 {[%clk 0:01:12]} 22. Qb3 {[%clk 0:01:37]}  Ra3 {[%clk 0:00:29]} 23. Qxa3 {[%clk 0:01:33]} 1-0


[Site "https://www.chess.com"]

[Event "Titled Tuesday Blitz November 08 Late 2022"]
[White "Dubov, Daniil"]
[Black "Chigaev, Maksim"]
[WhiteFideId "24126055"]
[BlackFideId "4108116"]
[WhiteElo "2791"]
[BlackElo "2541"]
[Result "1-0"]
[Round "06"]
[TimeControl "180+1"]
[Date "2022.11.08"]
[WhiteClock "0:00:06"]
[BlackClock "0:00:05"]

1. Nf3 {[%clk 0:03:00]}  Nf6 {[%clk 0:02:57]} 2. d4 {[%clk 0:03:00]}  g6 {[%clk 0:02:55]} 3. c4 {[%clk 0:03:00]}  Bg7 {[%clk 0:02:56]} 4. Nc3 {[%clk 0:03:01]}  O-O {[%clk 0:02:56]} 5. Bg5 {[%clk 0:03:00]}  d6 {[%clk 0:02:55]} 6. e3 {[%clk 0:03:00]}  c5 {[%clk 0:02:55]} 7. d5 {[%clk 0:03:00]}  Qb6 {[%clk 0:02:46]} 8. Rb1 {[%clk 0:02:56]}  Qa5 {[%clk 0:02:47]} 9. Bd3 {[%clk 0:02:53]}  b5 {[%clk 0:02:47]} 10. cxb5 {[%clk 0:02:51]}  Nxd5 {[%clk 0:02:46]} 11. O-O {[%clk 0:02:50]}  Nxc3 {[%clk 0:02:36]} 12. bxc3 {[%clk 0:02:50]}  Qc7 {[%clk 0:02:35]} 13. Be4 {[%clk 0:02:32]}  Bb7 {[%clk 0:02:33]} 14. Bxb7 {[%clk 0:02:32]}  Qxb7 {[%clk 0:02:34]} 15. c4 {[%clk 0:02:31]}  Re8 {[%clk 0:02:16]} 16. Nd2 {[%clk 0:02:30]}  h6 {[%clk 0:02:12]} 17. Bf4 {[%clk 0:02:27]}  a6 {[%clk 0:02:08]} 18. a4 {[%clk 0:02:26]}  Nd7 {[%clk 0:02:02]} 19. h3 {[%clk 0:02:20]}  axb5 {[%clk 0:01:59]} 20. Rxb5 {[%clk 0:02:10]}  Qa6 {[%clk 0:01:53]} 21. a5 {[%clk 0:02:08]}  Reb8 {[%clk 0:01:41]} 22. Qf3 {[%clk 0:02:05]}  Rxb5 {[%clk 0:01:25]} 23. cxb5 {[%clk 0:02:06]}  Qxa5 {[%clk 0:01:25]} 24. Nc4 {[%clk 0:02:07]}  Qa4 {[%clk 0:01:25]} 25. Qc6 {[%clk 0:02:03]}  Ra7 {[%clk 0:00:57]} 26. Qc8+ {[%clk 0:01:51]}  Kh7 {[%clk 0:00:45]} 27. b6 {[%clk 0:01:48]}  Ra8 {[%clk 0:00:34]} 28. b7 {[%clk 0:01:38]}  Rb8 {[%clk 0:00:34]} 29. Nxd6 {[%clk 0:01:18]}  exd6 {[%clk 0:00:07]} 30. Bxd6 {[%clk 0:01:17]}  Rxb7 {[%clk 0:00:07]} 31. Qxb7 {[%clk 0:01:17]}  c4 {[%clk 0:00:08]} 32. Qd5 {[%clk 0:00:54]}  Kg8 {[%clk 0:00:08]} 33. e4 {[%clk 0:00:29]}  c3 {[%clk 0:00:08]} 34. e5 {[%clk 0:00:29]}  c2 {[%clk 0:00:07]} 35. Rc1 {[%clk 0:00:28]}  Kh7 {[%clk 0:00:07]} 36. Qxf7 {[%clk 0:00:21]}  Qd4 {[%clk 0:00:04]} 37. Rxc2 {[%clk 0:00:09]}  Qd1+ {[%clk 0:00:04]} 38. Kh2 {[%clk 0:00:10]}  Qxc2 {[%clk 0:00:05]} 39. e6 {[%clk 0:00:07]}  Qd1 {[%clk 0:00:05]} 40. Qxd7 {[%clk 0:00:06]} 1-0


[Site "https://www.chess.com"]

[Event "Titled Tuesday Blitz November 08 Late 2022"]
[White "Dudzinski, Pawel"]
[Black "Van Dael, Siem"]
[WhiteFideId "1117890"]
[BlackFideId "1049771"]
[WhiteElo "2086"]
[BlackElo "2287"]
[Result "1-0"]
[Round "06"]
[TimeControl "180+1"]
[Date "2022.11.09"]
[WhiteClock "0:00:14"]
[BlackClock "0:01:29"]

1. e4 {[%clk 0:03:00]}  c5 {[%clk 0:02:55]} 2. Nc3 {[%clk 0:03:01]}  d6 {[%clk 0:02:53]} 3. g3 {[%clk 0:03:02]}  Nc6 {[%clk 0:02:52]} 4. Bg2 {[%clk 0:03:02]}  g6 {[%clk 0:02:53]} 5. d3 {[%clk 0:03:03]}  Bg7 {[%clk 0:02:54]} 6. Be3 {[%clk 0:03:03]}  Nf6 {[%clk 0:02:54]} 7. Qd2 {[%clk 0:03:04]}  Ng4 {[%clk 0:02:55]} 8. Nf3 {[%clk 0:03:00]}  Nxe3 {[%clk 0:02:54]} 9. fxe3 {[%clk 0:03:01]}  O-O {[%clk 0:02:54]} 10. O-O {[%clk 0:03:00]}  a6 {[%clk 0:02:54]} 11. Rf2 {[%clk 0:02:57]}  b5 {[%clk 0:02:54]} 12. e5 {[%clk 0:02:55]}  Bb7 {[%clk 0:02:51]} 13. exd6 {[%clk 0:02:54]}  Qxd6 {[%clk 0:02:49]} 14. Ne4 {[%clk 0:02:52]}  Qc7 {[%clk 0:02:49]} 15. Nxc5 {[%clk 0:02:51]}  Bxb2 {[%clk 0:02:49]} 16. Raf1 {[%clk 0:02:47]}  Rad8 {[%clk 0:02:46]} 17. Nxb7 {[%clk 0:02:36]}  Qxb7 {[%clk 0:02:46]} 18. c3 {[%clk 0:02:29]}  Na5 {[%clk 0:02:39]} 19. Qxb2 {[%clk 0:02:25]}  Qb6 {[%clk 0:02:37]} 20. d4 {[%clk 0:02:14]}  Nc4 {[%clk 0:02:37]} 21. Qe2 {[%clk 0:02:15]}  Qe6 {[%clk 0:02:37]} 22. Re1 {[%clk 0:02:11]}  f5 {[%clk 0:02:31]} 23. Nd2 {[%clk 0:02:10]}  Nd6 {[%clk 0:02:27]} 24. e4 {[%clk 0:02:08]}  Qxa2 {[%clk 0:02:27]} 25. exf5 {[%clk 0:02:02]}  Nxf5 {[%clk 0:02:27]} 26. Ne4 {[%clk 0:02:01]}  Qa3 {[%clk 0:02:22]} 27. Nc5 {[%clk 0:01:39]}  Qxc3 {[%clk 0:02:21]} 28. Ne6 {[%clk 0:01:12]}  Nxd4 {[%clk 0:02:21]} 29. Nxd4 {[%clk 0:01:12]}  Qxd4 {[%clk 0:02:20]} 30. Qe6+ {[%clk 0:01:11]}  Kh8 {[%clk 0:02:18]} 31. Qe5+ {[%clk 0:01:09]}  Qxe5 {[%clk 0:02:18]} 32. Rxe5 {[%clk 0:01:10]}  Rxf2 {[%clk 0:02:17]} 33. Kxf2 {[%clk 0:01:10]}  Rd2+ {[%clk 0:02:16]} 34. Kf3 {[%clk 0:01:04]}  Rd3+ {[%clk 0:02:07]} 35. Kf4 {[%clk 0:01:00]}  Rd2 {[%clk 0:02:07]} 36. Bb7 {[%clk 0:00:58]}  Rxh2 {[%clk 0:02:01]} 37. Bxa6 {[%clk 0:00:52]}  b4 {[%clk 0:02:01]} 38. Rxe7 {[%clk 0:00:39]}  b3 {[%clk 0:01:58]} 39. Rb7 {[%clk 0:00:35]}  b2 {[%clk 0:01:59]} 40. Bc4 {[%clk 0:00:25]}  Rc2 {[%clk 0:01:56]} 41. Ba2 {[%clk 0:00:25]}  Rf2+ {[%clk 0:01:49]} 42. Kg5 {[%clk 0:00:24]}  Rg2 {[%clk 0:01:47]} 43. g4 {[%clk 0:00:21]}  b1=Q {[%clk 0:01:39]} 44. Bxb1 {[%clk 0:00:21]}  h5 {[%clk 0:01:30]} 45. Kh6 {[%clk 0:00:19]}  Kg8 {[%clk 0:01:30]} 46. g5 {[%clk 0:00:17]}  h4 {[%clk 0:01:29]} 47. Bxg6 {[%clk 0:00:16]}  Kf8 {[%clk 0:01:30]} 48. Rb4 {[%clk 0:00:14]}  h3 {[%clk 0:01:29]} 49. Re4 {[%clk 0:00:14]} 1-0


[Site "https://www.chess.com"]